bitfinex/quotes_ETHUSD_20240924
["timestamp","ask_amount","ask_price","bid_price","bid_amount"]
[1727207477250,3.7723,2650.9,2650.2,4.57748]
[1727207477458,3.77245,2650.8,2650.3,3.77308]
[1727207478382,3.77244,2650.8,2650.3,3.77308]
[1727207478733,3.77273,2650.6,2650.2,0.8042]
[1727207479162,3.77296,2650.5,2650.2,0.8042]
[1727207479565,3.77273,2650.6,2650.2,0.8042]
[1727207479765,3.77288,2650.5,2650.2,0.8042]
[1727207479961,3.77273,2650.6,2650.2,0.8042]
[1727207480169,7.54559,2650.6,2650.2,0.8042]
[1727207480381,3.77273,2650.6,2650.2,0.8042]
[1727207480681,3.77246,2650.8,2650.2,1.261971]
[1727207480975,3.77246,2650.8,2650.2,0.8042]
[1727207481175,3.77246,2650.8,2650.2,4.57748]
[1727207481896,3.77246,2650.8,2650.3,3.77315]
[1727207482048,3.77246,2650.8,2650.3,3.87230103]
[1727207482482,3.77261,2650.7,2650.3,0.09915103]
[1727207482868,3.77261,2650.7,2650.2,4.57736]
[1727207483079,3.77261,2650.7,2650.4,0.09911135]
[1727207483281,3.77261,2650.7,2650.3,0.09915103]
[1727207483487,3.77281,2650.6,2650.5,0.09907167]
[1727207483777,3.77261,2650.7,2650.5,0.09907167]
[1727207483981,7.54481,2650.9,2650.3,3.77305]
[1727207484281,3.7724,2650.9,2650.6,0.099032]
[1727207484471,7.54481,2650.9,2650.3,4.230775]
[1727207484646,3.77247,2650.8,2650.7,0.09899233]
[1727207484843,3.77281,2650.6,2650.2,0.8042]
[1727207485082,3.77281,2650.6,2649.9,3.77364]
[1727207485083,3.77312,2650.4,2649.9,0.8042]
[1727207485281,3.77346,2650.1,2649.9,0.8042]
[1727207485871,3.77319,2650.3,2649.9,0.8042]
[1727207485872,7.54646,2650.3,2649.9,0.8042]
[1727207486184,3.77334,2650.2,2649.9,0.8042]
[1727207486584,3.77346,2650.1,2649.9,0.8042]
[1727207487283,3.77346,2650.1,2649.6,0.8042]
[1727207490493,4.150549,2650.3,2649.6,0.8042]
[1727207490679,3.77331,2650.2,2649.7,3.77389]
[1727207491078,7.54648,2650.3,2649.7,3.77389]
[1727207491278,8.1797,2650.7,2650.1,0.8042]
[1727207491279,3.77293,2650.5,2650.1,0.8042]
[1727207491486,11.15264,2650.7,2650.1,4.57762]
[1727207491700,3.77277,2650.6,2650.1,4.57762]
[1727207491860,3.77277,2650.6,2650.2,0.09957992]
[1727207492352,3.77273,2650.6,2650.1,4.57761]
[1727207492573,3.77273,2650.6,2650.2,0.09957992]
[1727207493150,3.77264,2650.7,2650.2,0.09957992]
[1727207493356,3.77252,2650.8,2650.2,0.09957992]
[1727207493566,3.77241,2650.9,2650.4,3.77297]
[1727207493768,3.77239,2650.9,2650.5,0.09938116]
[1727207493970,3.77244,2650.8,2650.3,3.77304]
[1727207494168,3.77244,2650.8,2650.6,0.09934148]
[1727207494479,4.56047304,2650.9,2650.3,3.77304]
[1727207494653,4.56047304,2650.9,2650.7,0.09930181]
[1727207494855,0.78808304,2651.0,2650.4,3.77299]
[1727207495056,3.77231,2650.9,2650.8,0.09926214]
[1727207495288,3.77231,2650.9,2650.4,3.77299]
[1727207495490,0.8326,2650.8,2650.1,0.8042]
[1727207495657,3.77279,2650.6,2650.1,0.8042]
[1727207496456,3.77265,2650.7,2650.1,0.8042]
[1727207496658,3.77246,2650.8,2650.3,0.8289]
[1727207496961,3.7722,2651.0,2650.4,3.87230084]
[1727207497162,3.77246,2650.8,2650.4,0.09942084]
[1727207497700,3.77259,2650.7,2650.4,0.09942084]
[1727207498989,3.77287,2650.5,2650.4,0.09942084]
[1727207499299,3.77303,2650.4,2650.0,0.8289]
[1727207499764,3.77303,2650.4,2650.1,0.09935232]
[1727207499960,3.77288,2650.5,2650.1,0.09935232]
[1727207500160,3.77275,2650.6,2650.1,0.09935232]
[1727207500398,3.77251,2650.8,2650.1,0.09935232]
[1727207500399,3.77251,2650.8,2650.3,3.77311]
[1727207500583,11.56212457,2651.2,2650.4,4.60188]
[1727207500584,4.56001304,2651.2,2650.4,4.60188]
[1727207500784,3.77203,2651.1,2650.6,3.77268]
[1727207500970,3.77193,2651.2,2650.5,0.09919359]
[1727207500971,3.77243,2650.9,2650.5,0.09919359]
[1727207501172,3.77243,2650.9,2650.4,0.8289]
[1727207501173,3.77243,2650.9,2650.7,0.09911425]
[1727207501367,3.77243,2650.9,2650.4,0.8289]
[1727207501565,0.78808304,2651.2,2650.4,0.8289]
[1727207501566,3.77246,2650.8,2650.4,0.8289]
[1727207501775,3.77246,2650.8,2650.5,0.09911857]
[1727207502502,3.77273,2650.6,2650.5,0.09911857]
[1727207503003,3.77262,2650.7,2650.2,3.77327]
[1727207503221,3.77262,2650.7,2650.5,0.099067]
[1727207503424,3.77262,2650.7,2650.2,3.77327]
[1727207503730,3.77262,2650.7,2650.1,3.8289]
[1727207503731,3.77275,2650.6,2650.1,3.8289]
[1727207503882,3.77275,2650.6,2650.3,0.09914636]
[1727207504086,3.77275,2650.6,2650.1,7.60231]
[1727207504722,3.77258,2650.7,2650.2,0.09918604]
[1727207504905,3.77258,2650.7,2650.2,3.87240604]
[1727207505107,3.77258,2650.7,2650.2,0.09918604]
[1727207505313,3.77275,2650.6,2650.2,0.09918604]
[1727207505687,3.77258,2650.7,2650.2,0.09918604]
[1727207505885,0.78808304,2650.8,2650.3,3.77313]
[1727207506086,0.78808304,2650.8,2650.4,0.8289]
[1727207506087,3.77246,2650.8,2650.4,0.8289]
[1727207506282,0.78808304,2651.0,2650.6,3.77265]
[1727207506626,4.95421457,2651.1,2650.5,0.8289]
[1727207506627,0.78808304,2651.1,2650.7,3.77254]
[1727207506783,0.78808304,2651.1,2650.7,3.87152765]
[1727207506986,0.78808304,2651.0,2650.7,3.87149765]
[1727207507191,0.78808304,2651.1,2650.8,3.77241]
[1727207507507,7.38,2651.4,2651.1,0.8289]
[1727207507508,8.16808304,2651.4,2651.1,0.8289]
[1727207507907,7.38,2651.4,2651.2,0.09878934]
[1727207508287,11.15159,2651.4,2651.2,0.09878934]
[1727207508484,8.16808304,2651.4,2651.2,0.09878934]
[1727207508917,7.38,2651.4,2651.2,0.09878934]
[1727207510951,7.68459164,2651.8,2651.5,0.8317]
[1727207510952,0.0383912,2651.8,2651.5,0.8317]
[1727207511406,0.0383912,2651.8,2651.6,3.86934484]
[1727207511605,0.0383912,2651.8,2651.6,0.94529932]
[1727207511841,0.0383912,2651.8,2651.6,0.09804484]
[1727207512252,0.0383912,2651.8,2651.6,3.86930484]
[1727207513445,0.0383912,2651.8,2651.7,3.77116]
[1727207513606,0.0383912,2651.8,2651.7,3.86892157]
[1727207513806,0.0383912,2651.8,2651.7,4.72366648]
[1727207517971,0.0383912,2651.8,2651.7,0.95250648]
[1727207518172,0.0383912,2651.8,2651.7,0.09776157]
[1727207518987,0.0383912,2651.8,2651.7,3.86892157]
[1727207519843,0.0383912,2651.8,2651.7,4.70062157]
[1727207520081,0.0383912,2651.8,2651.7,4.77603098]
[1727207520570,0.0383912,2651.8,2651.7,7.77603098]
[1727207520754,0.0383912,2651.8,2651.7,9.31542592]
[1727207520950,0.0383912,2651.8,2651.7,9.24001651]
[1727207526535,0.0383912,2651.8,2651.7,12.35922976]
[1727207527735,0.0383912,2651.8,2651.7,9.24001651]
[1727207528100,0.0383912,2651.8,2651.7,2.46885651]
[1727207528332,0.0383912,2651.8,2651.7,0.92946157]
[1727207529568,0.0383912,2651.8,2651.7,0.09776157]
[1727207530352,3.8094112,2651.8,2651.7,0.09776157]
[1727207530649,3.8094112,2651.8,2651.4,0.7652]
[1727207530650,0.0383912,2651.8,2651.5,3.77137]
[1727207530804,0.0383912,2651.8,2651.5,7.95678758]
[1727207531004,0.0383912,2651.8,2651.6,0.09735618]
[1727207531254,0.0383912,2651.8,2651.7,7.65557325]
[1727207531548,0.0383912,2651.8,2651.7,10.82830212]
[1727207531847,0.0383912,2651.8,2651.7,12.31946944]
[1727207533211,3.80972733,2652.6,2652.1,3.77052]
[1727207533413,3.80972733,2652.6,2652.2,0.09711837]
[1727207533921,0.03982733,2652.6,2652.2,0.09711837]
[1727207534224,3.80978733,2652.6,2651.9,6.88998325]
[1727207534423,3.77011,2652.5,2652.0,4.63326233]
[1727207534888,3.77047,2652.2,2652.0,0.86262233]
[1727207535036,3.77047,2652.2,2652.0,0.097104]
[1727207535240,3.77047,2652.2,2651.8,0.7652]
[1727207535422,3.77075,2652.0,2651.7,1.56657965]
[1727207535636,3.77075,2652.0,2651.6,0.7652]
[1727207535852,3.77075,2652.0,2651.7,0.09708708]
[1727207536055,3.7706,2652.1,2651.7,0.09708708]
[1727207536437,3.7706,2652.1,2651.7,0.97898555]
[1727207536651,3.77054,2652.2,2651.7,0.97898555]
[1727207536652,3.77046,2652.2,2651.7,4.75009555]
[1727207536967,3.77062,2652.1,2651.7,0.97898555]
[1727207537192,7.54104,2652.2,2651.7,4.75013555]
[1727207537765,7.54104,2652.2,2651.8,0.55153356]
[1727207537965,3.7706,2652.1,2651.8,0.55153356]
[1727207538254,3.7706,2652.1,2651.9,0.09700781]
[1727207538455,3.7706,2652.1,2651.6,0.7652]
[1727207538790,3.7706,2652.1,2652.0,0.09696817]
[1727207538956,3.7706,2652.1,2651.6,4.53648]
[1727207539159,3.7706,2652.1,2652.0,0.09696817]
[1727207539355,3.77039,2652.3,2651.7,3.77114]
[1727207539616,3.77039,2652.3,2652.0,0.09696817]
[1727207539765,3.77019,2652.4,2651.9,3.7708]
[1727207539965,3.77019,2652.4,2652.1,0.09692854]
[1727207540171,3.77019,2652.4,2652.0,0.09696817]
[1727207540387,3.77031,2652.3,2652.2,0.09688892]
[1727207540559,3.77031,2652.3,2652.1,0.09692854]
[1727207540762,3.77019,2652.4,2652.2,0.097006]
[1727207541181,3.77019,2652.4,2651.9,3.84622237]
[1727207541182,7.54047,2652.4,2651.9,3.77081]
[1727207541404,3.77019,2652.4,2652.3,0.09688208]
[1727207541584,3.77019,2652.4,2652.0,0.377081]
[1727207541908,0.79,2652.5,2652.0,0.377081]
[1727207542205,3.80970757,2652.6,2652.1,4.53579]
[1727207542772,3.80970757,2652.6,2652.2,0.0969217]
[1727207544558,0.03981757,2652.6,2652.2,0.0969217]
[1727207544760,3.80971757,2652.6,2652.2,0.0969217]
[1727207545003,3.77018,2652.4,2652.2,0.0969217]
[1727207545296,3.77031,2652.3,2652.2,0.0969217]
[1727207545469,3.77063,2652.1,2651.6,3.0]
[1727207545669,7.54134,2652.1,2651.7,1.11752]
[1727207545859,3.77063,2652.1,2651.6,3.7713]
[1727207546060,7.54132,2652.1,2651.6,3.7713]
[1727207546296,3.77063,2652.1,2651.6,3.77122]
[1727207546481,3.77063,2652.1,2651.7,0.453642]
[1727207546999,3.77074,2652.0,2651.7,0.453642]
[1727207547298,4.56042,2652.3,2651.7,4.224662]
[1727207547704,3.77052,2652.2,2651.7,4.224662]
[1727207547994,4.56042,2652.3,2651.8,3.77095]
[1727207547995,3.77042,2652.3,2651.8,3.77095]
[1727207548200,3.77047,2652.2,2651.9,0.4224592]
[1727207548514,3.77042,2652.3,2651.9,0.4224592]
[1727207548813,3.77042,2652.3,2651.8,3.771]
[1727207549220,4.56011,2652.5,2652.0,3.77072]
[1727207549432,3.80970757,2652.6,2652.1,4.53566]
[1727207550280,0.03981757,2652.6,2652.3,3.77028]
[1727207550480,0.03981757,2652.6,2652.2,3.19461359]
[1727207550481,3.80969757,2652.6,2652.2,3.19461359]
[1727207550677,3.80969757,2652.6,2652.2,0.8484277]
[1727207551330,3.80969757,2652.6,2652.2,0.77302736]
[1727207551490,3.80969757,2652.6,2652.1,4.53566]
[1727207551491,3.77003,2652.5,2652.1,0.7652]
[1727207551676,3.77025,2652.4,2651.9,3.77086]
[1727207552506,3.77032,2652.3,2651.9,3.77086]
[1727207553152,4.55811304,2652.5,2651.8,4.53621]
[1727207553153,3.77017,2652.4,2651.8,4.53621]
[1727207553449,0.78808304,2652.5,2652.2,3.77039]
[1727207553619,1.22194214,2652.6,2652.5,3.77002]
[1727207553620,0.03981757,2652.6,2652.5,3.77002]
[1727207553802,0.03981757,2652.6,2652.5,7.53522]
[1727207554142,0.03981757,2652.6,2652.5,9.42014234]
[1727207554349,0.03981757,2652.6,2652.5,9.34476068]
[1727207554505,0.03981757,2652.6,2652.5,11.75681644]
[1727207555208,0.03981757,2652.6,2652.5,10.62996348]
[1727207556005,0.03981757,2652.6,2652.5,11.75610211]
[1727207556211,0.03981757,2652.6,2652.5,11.43850071]
[1727207556509,0.03981757,2652.6,2652.5,11.77201353]
[1727207556718,0.03981757,2652.6,2652.5,11.77125669]
[1727207556917,0.03981757,2652.6,2652.5,12.40102937]
[1727207557518,0.03981757,2652.6,2652.5,11.86740885]
[1727207558042,0.03981757,2652.6,2652.5,12.40060191]
[1727207559782,0.03981757,2652.6,2652.5,10.78321899]
[1727207560048,0.03981757,2652.6,2652.5,11.31573589]
[1727207560347,0.03981757,2652.6,2652.5,10.52254339]
[1727207561411,0.03981757,2652.6,2652.5,9.99002649]
[1727207563049,0.03981757,2652.6,2652.5,10.52196422]
[1727207563659,0.03981757,2652.6,2652.5,9.99002649]
[1727207565637,0.03981757,2652.6,2652.5,9.65720343]
[1727207567557,0.03981757,2652.6,2652.5,9.10720343]
[1727207567757,0.03981757,2652.6,2652.5,6.10720343]
[1727207568844,0.03981757,2652.6,2652.5,9.10720343]
[1727207569949,0.03981757,2652.6,2652.5,9.65720343]
[1727207570332,20.555,2653.1,2652.5,5.88718343]
[1727207570537,20.555,2653.1,2653.0,6.88852325]
[1727207570829,20.555,2653.1,2653.0,6.98404211]
[1727207571585,20.555,2653.1,2653.0,0.09551886]
[1727207572162,20.555,2653.1,2653.0,3.21473211]
[1727207572379,20.555,2653.1,2653.0,6.98404211]
[1727207572531,20.555,2653.1,2653.0,8.05938432]
[1727207573171,20.555,2653.1,2653.0,11.05938432]
[1727207577466,7.79791281,2653.1,2653.0,11.30804211]
[1727207577837,7.79791281,2653.1,2653.0,11.63990422]
[1727207578039,7.79791281,2653.1,2653.0,11.30804211]
[1727207578273,3.76681,2654.8,2653.5,3.0]
[1727207578274,3.76694,2654.7,2653.5,3.0]
[1727207578497,4.52227,2654.8,2654.3,3.76733]
[1727207578940,4.52227,2654.8,2654.4,3.86179827]
[1727207579442,0.7554,2654.8,2654.4,3.21369152]
[1727207579648,0.7554,2654.8,2654.6,6.88624325]
[1727207579983,0.0383912,2655.0,2654.9,6.76662]
[1727207580285,0.0383912,2655.0,2654.9,3.09410752]
[1727207580501,0.0383912,2655.0,2654.9,0.09410752]
[1727207581486,0.0383912,2655.0,2654.9,3.86072752]
[1727207581894,0.0383912,2655.0,2654.9,5.18472752]
[1727207582187,0.0383912,2655.0,2654.9,8.18472752]
[1727207582585,0.0383912,2655.0,2654.9,7.63472752]
[1727207583192,0.0383912,2655.0,2654.9,3.86072752]
[1727207584430,0.0383912,2655.0,2654.9,0.09410752]
[1727207584588,0.0383912,2655.0,2654.9,3.86072752]
[1727207585927,0.0383912,2655.0,2654.9,0.09410752]
[1727207586137,0.0383912,2655.0,2654.9,3.86072752]
[1727207586444,0.0383912,2655.0,2654.8,3.76673]
[1727207586640,0.0383912,2655.0,2654.9,3.85619389]
[1727207587006,0.0383912,2655.0,2654.9,4.35619389]
[1727207587915,0.0383912,2655.0,2654.9,0.58957389]
[1727207589205,4.5662612,2655.0,2654.9,0.58957389]
[1727207589412,5.02288732,2655.0,2654.9,0.58957389]
[1727207589606,1.25641732,2655.0,2654.9,0.58957389]
[1727207590105,5.02288732,2655.0,2654.9,0.58957389]
[1727207590741,5.02288732,2655.0,2654.9,0.5]
[1727207591157,5.02288732,2655.0,2654.9,1.0]
[1727207593442,0.7997912,2655.0,2654.9,1.0]
[1727207593632,0.0383912,2655.0,2654.9,1.0]
[1727207593829,0.0383912,2655.0,2654.9,1.09016585]
[1727207594860,0.0383912,2655.0,2654.9,0.88926785]
[1727207595150,0.0383912,2655.0,2654.9,4.65588785]
[1727207595378,0.0383912,2655.0,2654.9,0.88926785]
[1727207595729,0.0383912,2655.0,2654.9,4.73121254]
[1727207596135,0.0383912,2655.0,2654.9,4.65588785]
[1727207596543,0.0383912,2655.0,2654.9,4.73120993]
[1727207596935,0.0383912,2655.0,2654.9,4.65588785]
[1727207600252,0.7997912,2655.0,2654.9,0.88926785]
[1727207600457,1.25639932,2655.0,2654.9,0.88926785]
[1727207600666,5.02286932,2655.0,2654.9,0.88926785]
[1727207601049,5.02286932,2655.0,2654.9,0.799102]
[1727207603697,1.25639932,2655.0,2654.9,0.799102]
[1727207603898,0.7997912,2655.0,2654.9,0.799102]
[1727207604064,0.7997912,2655.0,2654.9,0.88950544]
[1727207605359,0.0383912,2655.0,2654.9,0.88950544]
[1727207605762,0.0383912,2655.0,2654.9,5.47422544]
[1727207608921,0.0383912,2655.0,2654.9,5.54954155]
[1727207609074,0.0383912,2655.0,2654.9,8.47422544]
[1727207614404,0.0383912,2655.0,2654.9,7.65612544]
[1727207614921,0.0383912,2655.0,2654.9,4.65612544]
[1727207615420,0.0383912,2655.0,2654.9,4.73144874]
[1727207616229,0.0383912,2655.0,2654.9,4.65612544]
[1727207617754,0.0383912,2655.0,2654.9,7.77533869]
[1727207617911,0.0383912,2655.8,2655.7,6.76548]
[1727207618110,0.0383912,2655.8,2655.7,10.040873]
[1727207618351,0.0383912,2655.8,2655.7,14.45261495]
[1727207618661,0.0383912,2655.8,2655.7,15.57712568]
[1727207618966,0.0383912,2655.8,2655.7,14.50626785]
[1727207619141,0.0383912,2655.8,2655.7,15.25282898]
[1727207619345,0.0383912,2655.8,2655.7,14.72231971]
[1727207619523,3.8015112,2657.4,2657.0,3.76351]
[1727207619524,0.0383912,2657.4,2657.0,3.76351]
[1727207619730,0.0383912,2657.4,2657.1,0.07722268]
[1727207620462,0.0383912,2657.4,2656.8,3.76392]
[1727207620614,0.0383912,2657.4,2657.2,0.07718321]
[1727207620816,0.0383912,2657.4,2656.8,3.76392]
[1727207620817,0.49819332,2657.4,2656.8,3.76392]
[1727207621038,0.49819332,2657.4,2657.3,0.07714373]
[1727207621258,0.49819332,2657.4,2656.4,0.7655]
[1727207621259,0.49819332,2657.4,2656.7,3.76405]
[1727207621616,0.49819332,2657.4,2656.8,3.84123113]
[1727207622217,0.49819332,2657.4,2656.9,3.76377]
[1727207622417,0.0383912,2657.4,2656.9,3.76377]
[1727207622661,0.0383912,2657.4,2657.0,0.07726216]
[1727207623766,0.7967,2657.3,2657.0,0.07726216]
[1727207624250,0.7967,2657.3,2656.8,3.7639]
[1727207624461,0.7967,2657.3,2657.1,0.07722268]
[1727207624611,0.7967,2657.3,2656.8,3.76388]
[1727207624811,0.7967,2657.3,2657.2,0.07718321]
[1727207625310,0.7967,2657.3,2657.1,3.76348]
[1727207625669,0.7967,2657.3,2657.2,3.84053321]
[1727207625960,0.0383912,2657.4,2657.2,3.84053321]
[1727207626258,0.0383912,2657.4,2657.2,0.07718321]
[1727207626916,0.0383912,2657.4,2657.3,3.76321]
[1727207627146,0.0383912,2657.4,2657.3,3.84035373]
[1727207628467,0.0383912,2657.4,2657.3,0.07714373]
[1727207628762,0.0383912,2657.4,2657.1,3.76336]
[1727207628930,0.0383912,2657.4,2657.3,0.07714373]
[1727207629126,0.0383912,2657.4,2657.1,3.76336]
[1727207629458,0.0383912,2657.4,2657.2,3.84051321]
[1727207629656,0.0383912,2657.4,2657.3,3.76321]
[1727207630030,0.0383912,2657.4,2657.3,3.84035373]
[1727207631131,0.0383912,2657.4,2657.3,0.07714373]
[1727207631337,0.0383912,2657.4,2657.0,7.52713]
[1727207631561,0.0383912,2657.4,2657.1,0.07365597]
[1727207631867,0.8212,2657.3,2657.1,0.07365597]
[1727207632366,0.8212,2657.3,2657.2,0.07361649]
[1727207632733,0.8212,2657.3,2656.8,3.76383]
[1727207632912,0.8212,2657.3,2657.0,3.76364]
[1727207633116,0.8212,2657.3,2657.1,0.07340732]
[1727207633316,0.8212,2657.3,2656.9,3.76373]
[1727207633542,0.8212,2657.3,2657.0,0.07345143]
[1727207633745,0.8212,2657.3,2657.0,3.83701143]
[1727207633963,0.0383912,2657.4,2657.3,3.76321]
[1727207634315,0.0383912,2657.4,2657.3,3.8365892]
[1727207636768,0.0383912,2657.4,2657.3,0.0733792]
[1727207637355,0.0383912,2657.4,2657.3,0.0731759]
[1727207637717,0.0383912,2657.4,2657.1,3.76343]
[1727207638060,0.0383912,2657.4,2657.2,0.07333088]
[1727207639476,0.0383912,2657.4,2657.2,3.83667088]
[1727207640335,0.0383912,2657.4,2657.2,0.07333088]
[1727207640566,0.8212,2657.3,2657.2,0.07333088]
[1727207640773,8.59667612,2657.3,2657.2,0.07333088]
[1727207641092,0.8212,2656.5,2656.0,3.76495]
[1727207641237,0.8212,2656.5,2656.1,3.76484]
[1727207641445,0.8212,2656.5,2656.1,3.82893152]
[1727207641643,0.8212,2656.8,2656.5,3.76434]
[1727207641889,1.01226612,2657.3,2656.3,4.53093]
[1727207641890,1.01226612,2657.3,2656.8,3.76391]
[1727207641891,0.8212,2657.2,2656.8,3.76391]
[1727207642097,11.1815212,2657.4,2656.9,0.84156841]
[1727207642098,0.0383912,2657.4,2656.9,0.84156841]
[1727207642382,0.0383912,2657.4,2657.2,3.76324]
[1727207642644,0.0383912,2657.4,2657.1,3.76348]
[1727207642789,0.0383912,2657.4,2657.3,0.06379752]
[1727207643001,0.0383912,2657.4,2657.2,0.063837]
[1727207643151,0.0383912,2657.4,2657.3,0.06379752]
[1727207643556,0.0383912,2657.4,2656.9,3.76377]
[1727207643795,0.0383912,2657.4,2656.8,3.76387]
[1727207643796,0.0383912,2657.4,2657.3,0.06379752]
[1727207644000,0.0383912,2657.4,2657.0,3.76363]
[1727207644154,0.0383912,2657.4,2657.3,0.06379752]
[1727207644356,0.0383912,2657.4,2656.9,3.76368]
[1727207644555,0.0383912,2657.4,2657.3,3.82700752]
[1727207644855,0.0383912,2657.4,2657.3,4.52951]
[1727207645054,0.0383912,2657.4,2657.3,4.593266]
[1727207645288,0.0383912,2657.4,2657.3,0.063756]
[1727207645460,0.0383912,2657.4,2657.3,0.563756]
[1727207645655,0.0383912,2657.4,2657.3,0.5]
[1727207645889,0.0383912,2657.4,2657.3,0.639008]
[1727207646060,0.0383912,2657.4,2657.3,0.56375139]
[1727207646421,0.8146912,2657.4,2657.3,0.56375139]
[1727207646581,0.0383912,2657.4,2657.3,0.56375139]
[1727207647111,0.0383912,2657.4,2657.3,0.5]
[1727207647632,0.0383912,2657.4,2657.3,0.56362685]
[1727207648172,3.8014612,2657.4,2657.3,0.56362685]
[1727207648371,5.96184032,2657.4,2657.3,0.56362685]
[1727207648620,8.96184032,2657.4,2657.3,0.56362685]
[1727207648766,8.96184032,2657.4,2657.3,0.5]
[1727207648974,12.78738684,2657.4,2657.3,0.18057561]
[1727207649226,8.96184032,2657.4,2657.3,0.18057561]
[1727207649685,8.96184032,2657.4,2657.3,0.68057561]
[1727207650270,0.7763,2656.2,2655.7,4.15893629]
[1727207650515,0.7763,2656.2,2655.8,3.76534]
[1727207650717,0.7763,2656.2,2655.8,0.0645699]
[1727207651015,0.7763,2656.2,2655.8,3.76531]
[1727207651187,0.7763,2656.2,2655.9,0.0645996]
[1727207651387,7.38,2656.7,2656.2,3.76465]
[1727207651388,8.1563,2656.7,2656.2,3.76465]
[1727207651698,8.1563,2656.7,2656.0,0.8161]
[1727207651699,0.7763,2657.0,2656.6,3.76412]
[1727207652085,0.7763,2657.0,2656.5,0.07527784]
[1727207652086,0.7763,2657.0,2656.7,0.06492494]
[1727207652624,0.7763,2657.0,2656.4,3.76435]
[1727207652625,0.7763,2657.0,2656.8,0.06488545]
[1727207652770,3.80351,2657.1,2656.8,0.06488545]
[1727207652771,0.04,2657.1,2656.8,0.06488545]
[1727207652974,0.04,2657.1,2656.8,3.76384]
[1727207653175,0.04,2657.1,2656.7,0.07527243]
[1727207653176,0.04,2657.1,2656.9,0.06468904]
[1727207653682,0.04,2657.1,2656.7,3.76403]
[1727207653935,0.04,2657.1,2656.8,0.07527242]
[1727207654131,0.04,2657.1,2656.9,0.06462444]
[1727207655117,0.04,2657.1,2657.0,3.76364]
[1727207655317,0.04,2657.1,2657.0,0.06451113]
[1727207655547,0.04,2657.1,2656.8,3.83907874]
[1727207655548,0.04,2657.1,2656.9,3.76368]
[1727207655918,0.04,2657.1,2657.0,0.06451113]
[1727207657030,0.04,2657.1,2656.8,3.7638]
[1727207657228,0.04,2657.1,2657.0,0.06448345]
[1727207657424,0.04,2657.1,2656.9,0.06452755]
[1727207657671,0.0783912,2657.4,2657.0,0.06448807]
[1727207657839,0.0783912,2657.4,2657.3,0.5]
[1727207657840,4.67951032,2657.4,2657.3,0.5]
[1727207658219,0.91644032,2657.4,2657.3,0.5]
[1727207658555,4.67951032,2657.4,2657.3,0.5]
[1727207658714,4.67951032,2657.4,2657.3,0.56437425]
[1727207658923,4.67951032,2657.4,2657.3,0.5]
[1727207659344,0.91644032,2657.4,2657.3,0.5]
[1727207659659,0.91644032,2657.4,2657.3,0.56436041]
[1727207659861,0.0783912,2657.4,2657.3,0.56436041]
[1727207660462,3.8414612,2657.4,2657.3,0.56436041]
[1727207660621,4.6177612,2657.4,2657.3,0.56436041]
[1727207660816,4.6177612,2657.4,2657.3,0.5]
[1727207661362,0.8546912,2657.4,2657.3,0.5]
[1727207661574,4.6177612,2657.4,2657.3,0.5642866]
[1727207661778,0.8546912,2657.4,2657.3,0.5642866]
[1727207662286,5.45582732,2657.4,2657.3,0.5]
[1727207662838,5.45582732,2657.4,2657.3,0.5642866]
[1727207663034,5.45582732,2657.4,2657.3,0.5]
[1727207663542,6.24384014,2657.4,2657.3,0.5642866]
[1727207663885,5.40577402,2657.4,2657.3,0.5]
[1727207664055,5.35558118,2658.0,2657.4,2.27208793]
[1727207664056,0.78858432,2658.0,2657.4,2.27208793]
[1727207664241,0.0383912,2658.2,2658.1,3.76208]
[1727207664673,0.0383912,2658.2,2658.1,3.82362684]
[1727207664876,0.0383912,2658.2,2658.1,0.06154684]
[1727207665376,0.0383912,2658.2,2658.1,3.82362684]
[1727207666379,0.0383912,2658.2,2658.1,4.71495276]
[1727207667176,0.0383912,2658.2,2658.1,4.63972684]
[1727207667840,0.0383912,2658.2,2658.1,9.86863354]
[1727207668040,0.0383912,2659.8,2658.9,3.76095]
[1727207668274,0.0383912,2659.8,2658.9,4.57705]
[1727207668488,0.0383912,2659.8,2658.9,4.71066105]
[1727207668681,0.0383912,2659.8,2658.9,4.63545716]
[1727207668887,0.0383912,2659.8,2658.9,4.71066111]
[1727207669060,0.0383912,2659.8,2658.9,4.63545716]
[1727207669887,0.0383912,2659.8,2658.9,7.71065503]
[1727207670087,0.0383912,2659.8,2658.9,7.63545716]
[1727207670299,0.0383912,2659.8,2658.9,4.63545716]
[1727207670588,0.7763,2659.5,2658.9,0.05840716]
[1727207670786,0.0383912,2659.8,2658.9,3.81935716]
[1727207670987,0.0383912,2659.8,2658.9,4.63545716]
[1727207671689,0.0383912,2659.8,2658.9,7.71065756]
[1727207671899,0.0383912,2659.8,2658.9,7.63545716]
[1727207672354,0.0383912,2659.8,2658.9,7.71065429]
[1727207672963,0.0383912,2659.8,2658.9,8.18545716]
[1727207673167,0.0383912,2659.8,2658.9,7.63545716]
[1727207674602,0.0383912,2659.8,2658.9,3.81935716]
[1727207674603,0.7763,2659.4,2658.9,3.81935716]
[1727207674890,3.76039,2659.3,2658.9,0.05840716]
[1727207675253,0.7763,2659.4,2658.9,3.76095]
[1727207675448,0.7763,2659.4,2658.9,3.81420279]
[1727207675690,0.8645912,2659.8,2658.9,3.81420279]
[1727207675893,0.8645912,2659.8,2658.9,6.81420279]
[1727207676695,0.8645912,2659.8,2658.9,6.88940535]
[1727207676906,0.8645912,2659.8,2658.9,6.81420279]
[1727207677304,0.0383912,2659.8,2658.9,6.81420279]
[1727207677895,0.0383912,2659.8,2658.9,7.60460279]
[1727207679358,0.0383912,2659.8,2659.7,6.75982]
[1727207679607,0.0383912,2659.8,2659.7,7.60315748]
[1727207679891,0.0383912,2659.8,2659.7,6.81275748]
[1727207680394,0.8645912,2659.8,2659.7,0.05293748]
[1727207680559,1.32700432,2659.8,2659.7,0.05293748]
[1727207680755,0.8645912,2659.8,2659.7,0.05293748]
[1727207680993,0.8645912,2659.8,2659.7,0.04917538]
[1727207681180,5.1742712,2659.8,2659.7,0.04917538]
[1727207681393,5.1742712,2659.8,2658.9,3.76089]
[1727207681394,0.8645912,2659.8,2659.5,3.75999]
[1727207681702,0.0383912,2659.8,2659.7,3.80899538]
[1727207681859,0.0383912,2659.8,2659.7,3.75982]
[1727207682061,0.0383912,2659.8,2659.7,3.80899538]
[1727207682286,0.0383912,2659.8,2659.7,0.04917538]
[1727207682491,0.0383912,2659.8,2659.3,3.76034]